[Event "Turkish Club Cup 2019"]
[Site "Konya"]
[Date "2019.07.17"]
[Round "3"]
[White "Bozyaka, Altug"]
[Black "Guder, Eyup Sabri"]
[Result "0-1"]
[ECO "D04"]
[WhiteElo "1798"]
[BlackElo "1909"]
[Annotator "NA"]
[PlyCount "66"]
[EventDate "2019.07.16"]
[EventType "team-tourn"]
[EventCountry "TUR"]
[SourceTitle "playchess.com"]
[Source "ChessBase"]
[SourceQuality "1"]
[TimeControl "5400+30"]

1. d4 d5 2. Nf3 Nf6 3. e3 Bg4 4. Nbd2 Nbd7 5. h3 Bh5 6. g4 Bg6 7. Nh4 e6 8. Nxg6 hxg6 9. Bg2 Bd6 10. c4 c6 11. c5 Bc7 12. f4 b6 13. Qa4 bxc5 14. dxc5 Nxg4 15. hxg4 Rxh1+ 16. Bxh1 Qh4+ 17. Kd1 Qxh1+ 18. Kc2 Rc8 19. b4 {[%emt 1:20:04]} Qg1 {[%emt 0:31:30]} 20. Nb3 {[%emt 0:03:44]} Qxg4 {[%emt 0:04:30]} 21. Qxc6 {[%emt 0:04:30]} Qe2+ {[%emt 0:05:30]} 22. Bd2 {[%emt 0:01:05]} Qc4+ {[%emt 0:00:00]} 23. Kb2 {[%emt 0:01:21]} Be5+ {[%emt 0:01:00]} 24. fxe5 {[%emt 0:00:47]} Rxc6 {[%emt 0:00:00]} 25. Na5 {[%emt 0:01:15]} Qd3 {[%emt 0:00:00]} 26. Nxc6 {[%emt 0:00:55]} Qxd2+ {[%emt 0:00:30]} 27. Kb3 {[%emt 0:00:34]} Nxe5 {[%emt 0:01:30]} 28. Nxa7 {[%emt 0:04:57]} Qd3+ {[%emt 0:00:30]} 29. Ka4 {[%emt 0:00:23]} Qa6+ {[%emt 0:00:00]} 30. Kb3 {[%emt 0:00:34]} Qc4+ {[%emt 0:01:00]} 31. Ka4 {[%emt 0:01:39]} Nd3 {[%emt 0:00:30]} 32. Nc6 {[%emt 0:01:39]} Nxc5+ {[%emt 0:00:30]} 33. Ka3 {[%emt 0:00:00]} Qc3# {[%emt 0:00:00]} 0-1

[Event "Turkish Club Cup 2019"]
[Site "Konya"]
[Date "2019.07.17"]
[Round "3"]
[White "Kacangar, Mehmed"]
[Black "Emir, Emirhan"]
[Result "0-1"]
[ECO "A01"]
[WhiteElo "1785"]
[BlackElo "1904"]
[Annotator "NA"]
[PlyCount "66"]
[EventDate "2019.07.16"]
[EventType "team-tourn"]
[EventCountry "TUR"]
[SourceTitle "playchess.com"]
[Source "ChessBase"]
[SourceQuality "1"]
[TimeControl "5400+30"]

1. b3 e5 2. Bb2 d6 3. e3 g6 4. d4 Nd7 5. Nf3 Bg7 6. Nbd2 Qe7 7. d5 Ngf6 8. e4 O-O 9. Qe2 a5 10. a4 c6 11. c4 Nc5 12. Rb1 cxd5 13. cxd5 Nfxe4 14. Nxe4 Nxe4 15. Qe3 Nc5 16. Bb5 f5 17. Ba3 f4 18. Qe2 Bf5 19. Rd1 Rac8 20. Nd4 Qg5 {[%emt 0:23:00]} 21. Nxf5 {[%emt 1:27:52]} gxf5 {[%emt 0:00:30]} 22. O-O {[%emt 0:05:50]} Ne4 {[%emt 0:04:30]} 23. Bb2 {[%emt 0:04:51]} Nc3 {[%emt 0:02:30]} 24. Bxc3 {[%emt 0:02:01]} Rxc3 {[%emt 0:00:30]} 25. f3 {[%emt 0:00:30]} Rfc8 {[%emt 0:00:30]} 26. Bc4 {[%emt 0:00:30]} Re8 {[%emt 0:00:30]} 27. Qf2 {[%emt 0:00:30]} e4 {[%emt 0:00:30]} 28. fxe4 {[%emt 0:00:30]} Rxe4 {[%emt 0:00:30]} 29. Kh1 {[%emt 0:00:30]} Be5 {[%emt 0:00:30]} 30. Be2 {[%emt 0:00:30]} Rc2 {[%emt 0:00:30]} 31. Rde1 {[%emt 0:00:30]} Bc3 {[%emt 0:00:30]} 32. Qf3 {[%emt 0:00:30]} Bxe1 {[%emt 0:00:30]} 33. Rxe1 {[%emt 0:00:30]} Qe7 {[%emt 0:00:30]} 0-1

[Event "Turkish Club Cup 2019"]
[Site "Konya"]
[Date "2019.07.17"]
[Round "3"]
[White "Yurdakul, Didem Nuray"]
[Black "Yanik, Emine"]
[Result "1/2-1/2"]
[ECO "B01"]
[WhiteElo "1779"]
[BlackElo "1911"]
[Annotator "NA"]
[PlyCount "72"]
[EventDate "2019.07.16"]
[EventType "team-tourn"]
[EventCountry "TUR"]
[SourceTitle "playchess.com"]
[Source "ChessBase"]
[SourceQuality "1"]
[TimeControl "5400+30"]

1. e4 d5 2. exd5 Qxd5 3. Nc3 Qd8 4. Bc4 Nf6 5. Nf3 e6 6. d4 a6 7. a4 Be7 8. O-O O-O 9. Qe2 Nc6 10. Rd1 Nb4 11. Ne4 b6 12. Nxf6+ Bxf6 13. Qe4 Rb8 14. c3 Nd5 15. Bd3 g6 16. Bh6 Re8 {[%emt 0:59:00]} 17. Ne5 {[%emt 0:53:30]} Bb7 {[%emt 0:00:30]} 18. Qe2 {[%emt 0:00:30]} Bg5 {[%emt 0:04:30]} 19. Bxg5 {[%emt 0:00:30]} Qxg5 {[%emt 0:00:30]} 20. Qg4 {[%emt 0:05:30]} Qxg4 {[%emt 0:07:30]} 21. Nxg4 {[%emt 0:00:30]} Kg7 {[%emt 0:00:30]} 22. Re1 {[%emt 0:03:30]} Ne7 {[%emt 0:06:30]} 23. Rad1 {[%emt 0:04:30]} Rbd8 {[%emt 0:00:30]} 24. Bc4 {[%emt 0:07:30]} Rd6 {[%emt 0:02:30]} 25. f3 {[%emt 0:01:30]} Red8 {[%emt 0:00:37]} 26. Nf2 {[%emt 0:00:30]} R6d7 {[%emt 0:02:30]} 27. Rc1 {[%emt 0:08:01]} h5 {[%emt 0:01:20]} 28. Rc2 {[%emt 0:00:31]} h4 {[%emt 0:02:59]} 29. Rce2 {[%emt 0:01:45]} Nf5 {[%emt 0:03:14]} 30. Bd3 {[%emt 0:01:20]} Ne7 {[%emt 0:02:36]} 31. Bc4 {[%emt 0:04:34]} Rh8 {[%emt 0:00:46]} 32. Nh3 {[%emt 0:00:13]} Nd5 {[%emt 0:01:40]} 33. Re5 {[%emt 0:03:11]} Nf6 {[%emt 0:01:02]} 34. b4 {[%emt 0:02:47]} Nd5 {[%emt 0:01:02]} 35. Rc1 {[%emt 0:01:21]} Rhd8 {[%emt 0:02:26]} 36. Re2 {[%emt 0:01:21]} Rh8 {[%emt 0:00:31]} 1/2-1/2

[Event "Turkish Club Cup 2019"]
[Site "Konya"]
[Date "2019.07.17"]
[Round "3"]
[White "Gurses, Ayberk"]
[Black "Tuncer, Orcun Ege"]
[Result "1-0"]
[ECO "B38"]
[WhiteElo "1770"]
[BlackElo "1626"]
[Annotator "NA"]
[PlyCount "147"]
[EventDate "2019.07.16"]
[EventType "team-tourn"]
[EventCountry "TUR"]
[SourceTitle "playchess.com"]
[Source "ChessBase"]
[SourceQuality "1"]
[TimeControl "5400+30"]

1. e4 c5 2. Nf3 Nc6 3. d4 cxd4 4. Nxd4 g6 5. c4 Bg7 6. Be3 Nf6 7. Nc3 d6 8. Be2 Bd7 9. Qd2 Nxd4 10. Bxd4 O-O 11. O-O Bc6 12. f3 a5 13. b3 Nd7 14. Be3 Nc5 15. Rab1 Re8 16. a3 Qc7 17. Bd1 Rec8 18. Bc2 Rf8 19. Rfd1 Nd7 20. h3 b6 21. Bf2 Rfb8 22. a4 Nc5 23. Re1 Ra7 24. Rbd1 Rf8 25. Re2 Na6 26. Qe3 Rb7 27. Bh4 Nb4 28. Bb1 Re8 29. Rde1 e6 30. Bg3 Qd8 31. Nb5 Bxb5 32. axb5 e5 33. Rd1 g5 34. Be1 Re6 35. Bxb4 axb4 36. Ra2 Rb8 37. Bc2 Qc7 38. Rd5 Bh6 39. g4 f6 40. Qd2 Bf8 41. Qxb4 Ree8 42. Ra6 Ra8 43. Qa4 Qb7 44. Rd1 Qc8 45. Kf1 Rb8 46. Ke2 Qc5 47. Qa1 Rec8 48. Rd5 Qc7 49. Ke1 h6 50. Bd3 Rb7 51. Be2 Be7 52. Qa3 Kf7 53. b4 Kg6 54. Rd2 Rh8 55. Ra2 Kf7 56. Qd3 Kg7 57. Qd5 Rhb8 58. Kd2 Rc8 59. Ke3 Rcb8 60. Qc6 Rc8 61. Qd5 Rcb8 62. Rd2 Ra7 63. Bd3 Rab7 {[%emt 2:00:55]} 64. Rda2 {[%emt 1:51:15]} Rc8 {[%emt 0:00:30]} 65. Ra8 {[%emt 0:00:30]} Rcb8 {[%emt 0:00:30]} 66. Qc6 {[%emt 0:00:30]} Rxa8 {[%emt 0:00:30]} 67. Rxa8 {[%emt 0:00:30]} Qd7 {[%emt 0:00:04]} 68. Qd5 {[%emt 0:02:48]} Bf8 {[%emt 0:00:02]} 69. Bc2 {[%emt 0:00:02]} Ra7 {[%emt 0:00:54]} 70. Bb3 {[%emt 0:00:40]} Qb7 {[%emt 0:00:46]} 71. Rxa7 {[%emt 0:00:34]} Qxa7 {[%emt 0:00:45]} 72. c5 {[%emt 0:00:03]} Kg6 {[%emt 0:00:00]} 73. Qg8+ {[%emt 0:02:04]} Qg7 {[%emt 0:00:05]} 74. Bf7# {[%emt 0:00:25]} 1-0

[Event "Turkish Club Cup 2019"]
[Site "Konya"]
[Date "2019.07.17"]
[Round "3"]
[White "Cakir, Ege"]
[Black "Eroz, Deniz"]
[Result "1-0"]
[ECO "D11"]
[WhiteElo "1765"]
[BlackElo "1153"]
[Annotator "NA"]
[PlyCount "111"]
[EventDate "2019.07.16"]
[EventType "team-tourn"]
[EventCountry "TUR"]
[SourceTitle "playchess.com"]
[Source "ChessBase"]
[SourceQuality "1"]
[TimeControl "5400+30"]

1. d4 d5 2. Nf3 Nf6 3. g3 Bf5 4. Bg2 e6 5. O-O Be7 6. c4 c6 7. Qb3 Qb6 8. c5 Qxb3 9. axb3 Nbd7 10. Nc3 O-O 11. b4 a6 12. h3 h6 13. g4 Bh7 14. Bf4 Rfd8 15. Nd2 Nf8 16. Nb3 Kh8 17. Na5 Rd7 18. Na4 Bd8 19. Nb3 Bc2 20. Nd2 Ng6 21. Bg3 Ne4 22. Nxe4 Bxe4 23. Bxe4 dxe4 24. e3 f5 25. f4 Rf7 26. Nc3 Rc8 27. Rad1 Nh4 28. Bxh4 Bxh4 29. gxf5 exf5 30. d5 cxd5 31. Rxd5 Rc6 32. Kh2 Rg6 33. Rg1 Rc6 {[%emt 0:55:30]} 34. Kg2 {[%emt 0:57:00]} Kh7 {[%emt 0:12:30]} 35. Ne2 {[%emt 0:02:30]} Rg6+ {[%emt 0:03:30]} 36. Kf1 {[%emt 0:00:30]} Rxg1+ {[%emt 0:01:30]} 37. Nxg1 {[%emt 0:00:30]} Rf6 {[%emt 0:00:30]} 38. Ne2 {[%emt 0:00:00]} b6 {[%emt 0:01:30]} 39. Nd4 {[%emt 0:00:00]} g6 {[%emt 0:03:30]} 40. c6 {[%emt 0:01:30]} Rf8 {[%emt 0:01:30]} 41. Rd7+ {[%emt 0:00:30]} Kg8 {[%emt 0:02:30]} 42. c7 {[%emt 0:00:30]} Rc8 {[%emt 0:02:30]} 43. Ne6 {[%emt 0:00:00]} Bf6 {[%emt 0:00:30]} 44. Rd8+ {[%emt 0:01:00]} Bxd8 {[%emt 0:00:30]} 45. cxd8=Q+ {[%emt 0:00:30]} Rxd8 {[%emt 0:00:30]} 46. Nxd8 {[%emt 0:00:00]} Kf8 {[%emt 0:00:30]} 47. Nc6 {[%emt 0:00:00]} g5 {[%emt 0:00:30]} 48. Nd4 {[%emt 0:00:30]} gxf4 {[%emt 0:00:30]} 49. Nxf5 {[%emt 0:00:00]} fxe3 {[%emt 0:00:30]} 50. Ke2 {[%emt 0:00:00]} h5 {[%emt 0:00:30]} 51. Kxe3 {[%emt 0:00:00]} Kf7 {[%emt 0:00:30]} 52. Kxe4 {[%emt 0:00:00]} Kg6 {[%emt 0:01:30]} 53. h4 {[%emt 0:00:30]} b5 {[%emt 0:00:30]} 54. Ne7+ {[%emt 0:00:00]} Kf6 {[%emt 0:00:30]} 55. Nd5+ {[%emt 0:00:00]} Ke6 {[%emt 0:00:30]} 56. Nc7+ {[%emt 0:00:00]} 1-0

[Event "Turkish Club Cup 2019"]
[Site "Konya"]
[Date "2019.07.17"]
[Round "3"]
[White "Asan, Elvan"]
[Black "Adanmis, Ezgi"]
[Result "1-0"]
[ECO "A07"]
[WhiteElo "1760"]
[BlackElo "1692"]
[Annotator "NA"]
[PlyCount "91"]
[EventDate "2019.07.16"]
[EventType "team-tourn"]
[EventCountry "TUR"]
[SourceTitle "playchess.com"]
[Source "ChessBase"]
[SourceQuality "1"]
[TimeControl "5400+30"]

1. e4 {[%emt 0:00:30]} e6 {[%emt 0:00:30]} 2. d3 {[%emt 0:00:30]} d5 {[%emt 0:00:30]} 3. Nd2 {[%emt 0:00:00]} Nf6 {[%emt 0:00:00]} 4. g3 {[%emt 0:00:00]} Be7 {[%emt 0:06:00]} 5. Bg2 {[%emt 0:00:30]} dxe4 {[%emt 0:01:30]} 6. dxe4 {[%emt 0:01:30]} e5 {[%emt 0:00:30]} 7. Ngf3 {[%emt 0:01:30]} Nc6 {[%emt 0:04:30]} 8. O-O {[%emt 0:00:30]} O-O {[%emt 0:00:30]} 9. Qe2 {[%emt 0:04:30]} Bc5 {[%emt 0:14:30]} 10. c3 {[%emt 0:04:30]} h6 {[%emt 0:03:30]} 11. b4 {[%emt 0:02:30]} Bd6 {[%emt 0:01:30]} 12. Nc4 {[%emt 0:01:30]} Be6 {[%emt 0:02:30]} 13. Nh4 {[%emt 0:07:30]} Bxc4 {[%emt 0:15:30]} 14. Qxc4 {[%emt 0:00:30]} Ne7 {[%emt 0:00:30]} 15. f4 {[%emt 0:05:30]} c6 {[%emt 0:05:30]} 16. Qe2 {[%emt 0:05:30]} Qc7 {[%emt 0:03:30]} 17. f5 {[%emt 0:04:30]} Rfd8 {[%emt 0:10:30]} 18. g4 {[%emt 0:01:30]} Kf8 {[%emt 0:01:30]} 19. g5 {[%emt 0:00:30]} hxg5 {[%emt 0:00:30]} 20. Bxg5 {[%emt 0:01:30]} Neg8 {[%emt 0:00:00]} 21. Bf3 {[%emt 0:05:30]} c5 {[%emt 0:03:00]} 22. a3 {[%emt 0:11:30]} Rac8 {[%emt 0:03:30]} 23. Rac1 {[%emt 0:01:30]} Be7 {[%emt 0:01:30]} 24. Qg2 {[%emt 0:10:30]} Nh7 {[%emt 0:00:41]} 25. Bxe7+ {[%emt 0:01:30]} Qxe7 {[%emt 0:00:19]} 26. f6 {[%emt 0:00:30]} Qxf6 {[%emt 0:02:55]} 27. Bh5 {[%emt 0:01:30]} Qxh4 {[%emt 0:06:48]} 28. Rxf7+ {[%emt 0:00:30]} Ke8 {[%emt 0:00:01]} 29. Qxg7 {[%emt 0:00:30]} Qg5+ {[%emt 0:02:15]} 30. Qxg5 {[%emt 0:00:30]} Nxg5 {[%emt 0:00:00]} 31. Rxb7+ {[%emt 0:00:30]} Kf8 {[%emt 0:00:04]} 32. Rf1+ {[%emt 0:00:30]} Nf6 {[%emt 0:00:30]} 33. Rxf6+ {[%emt 0:00:00]} Kg8 {[%emt 0:00:09]} 34. Rg6+ {[%emt 0:00:00]} Kh8 {[%emt 0:03:57]} 35. Rxg5 {[%emt 0:00:30]} cxb4 {[%emt 0:01:05]} 36. axb4 {[%emt 0:00:30]} Rxc3 {[%emt 0:00:35]} 37. Rxe5 {[%emt 0:00:30]} Rc1+ {[%emt 0:00:48]} 38. Kf2 {[%emt 0:00:30]} Rcc8 {[%emt 0:01:55]} 39. Bg4 {[%emt 0:00:30]} Rc2+ {[%emt 0:00:28]} 40. Kg3 {[%emt 0:00:00]} Rd3+ {[%emt 0:00:59]} 41. Bf3 {[%emt 0:00:00]} Rc8 {[%emt 0:00:54]} 42. Rf5 {[%emt 0:01:30]} Rg8+ {[%emt 0:01:25]} 43. Kf4 {[%emt 0:00:00]} Rc8 {[%emt 0:00:12]} 44. Bg4 {[%emt 0:00:00]} Rcd8 {[%emt 0:02:06]} 45. Rh5+ {[%emt 0:00:30]} Kg8 {[%emt 0:00:00]} 46. Be6+ {[%emt 0:00:00]} 1-0

[Event "Turkish Club Cup 2019"]
[Site "Konya"]
[Date "2019.07.17"]
[Round "3"]
[White "Senyuz, Mustafa Zorbey"]
[Black "Celik, Berkay"]
[Result "1-0"]
[ECO "C06"]
[WhiteElo "1754"]
[BlackElo "1876"]
[Annotator "NA"]
[PlyCount "89"]
[EventDate "2019.07.16"]
[EventType "team-tourn"]
[EventCountry "TUR"]
[SourceTitle "playchess.com"]
[Source "ChessBase"]
[SourceQuality "1"]
[TimeControl "5400+30"]

1. e4 {[%emt 0:00:30]} e6 {[%emt 0:00:30]} 2. d4 {[%emt 0:00:30]} d5 {[%emt 0:00:30]} 3. Nd2 {[%emt 0:00:30]} Nf6 {[%emt 0:00:30]} 4. e5 {[%emt 0:00:00]} Nfd7 {[%emt 0:00:30]} 5. Bd3 {[%emt 0:00:00]} c5 {[%emt 0:00:00]} 6. c3 {[%emt 0:00:30]} Nc6 {[%emt 0:00:00]} 7. Ne2 {[%emt 0:00:00]} Qb6 {[%emt 0:00:30]} 8. Nf3 {[%emt 0:00:00]} g6 {[%emt 0:00:30]} 9. a3 {[%emt 0:00:30]} Bg7 {[%emt 0:00:30]} 10. b4 {[%emt 0:01:30]} cxd4 {[%emt 0:00:30]} 11. cxd4 {[%emt 0:00:30]} O-O {[%emt 0:00:30]} 12. Be3 {[%emt 0:00:30]} f6 {[%emt 0:00:30]} 13. exf6 {[%emt 0:01:30]} Nxf6 {[%emt 0:00:00]} 14. h3 {[%emt 0:00:00]} Nh5 {[%emt 0:03:00]} 15. O-O {[%emt 0:00:00]} Bd7 {[%emt 0:00:30]} 16. Rc1 {[%emt 0:01:30]} Rxf3 {[%emt 0:00:30]} 17. gxf3 {[%emt 0:09:30]} Rf8 {[%emt 0:03:30]} 18. Rc5 {[%emt 0:12:30]} Qd8 {[%emt 0:12:30]} 19. b5 {[%emt 0:16:30]} Ne7 {[%emt 0:01:30]} 20. Qd2 {[%emt 0:03:30]} Nf5 {[%emt 0:02:30]} 21. Bxf5 {[%emt 0:01:30]} Rxf5 {[%emt 0:00:30]} 22. Ng3 {[%emt 0:10:30]} Rxf3 {[%emt 0:01:30]} 23. Kg2 {[%emt 0:00:00]} Nxg3 {[%emt 0:01:30]} 24. fxg3 {[%emt 0:01:00]} Rxf1 {[%emt 0:00:30]} 25. Kxf1 {[%emt 0:00:30]} Bf8 {[%emt 0:00:30]} 26. Rc2 {[%emt 0:02:30]} Bxb5+ {[%emt 0:00:30]} 27. Kg2 {[%emt 0:00:30]} Bc4 {[%emt 0:14:30]} 28. Bg5 {[%emt 0:02:30]} Qb6 {[%emt 0:02:30]} 29. Qf4 {[%emt 0:01:30]} Qd6 {[%emt 0:07:30]} 30. Qe3 {[%emt 0:02:30]} Bg7 {[%emt 0:15:30]} 31. Rf2 {[%emt 0:00:30]} e5 {[%emt 0:12:31]} 32. Qf3 {[%emt 0:02:30]} Qe6 {[%emt 0:04:51]} 33. dxe5 {[%emt 0:02:30]} d4 {[%emt 0:01:35]} 34. Qf4 {[%emt 0:00:00]} Qxe5 {[%emt 0:00:14]} 35. Qc1 {[%emt 0:05:00]} Qe4+ {[%emt 0:03:52]} 36. Kh2 {[%emt 0:00:30]} d3 {[%emt 0:00:26]} 37. Bd2 {[%emt 0:04:30]} Be5 {[%emt 0:04:26]} 38. Bh6 {[%emt 0:03:17]} Bg7 {[%emt 0:00:57]} 39. Bxg7 {[%emt 0:02:44]} Kxg7 {[%emt 0:00:01]} 40. Qc3+ {[%emt 0:00:00]} Kh6 {[%emt 0:01:39]} 41. Qd2+ {[%emt 0:00:01]} g5 {[%emt 0:01:23]} 42. Qc3 {[%emt 0:02:05]} Kh5 {[%emt 0:02:21]} 43. Qf6 {[%emt 0:01:44]} Qg6 {[%emt 0:02:50]} 44. g4+ {[%emt 0:00:04]} Kh6 {[%emt 0:00:13]} 45. Qf8+ {[%emt 0:00:04]} 1-0

[Event "Turkish Club Cup 2019"]
[Site "Konya"]
[Date "2019.07.17"]
[Round "3"]
[White "Keskin, Osman Orcun"]
[Black "Ozcan, Alperen"]
[Result "1-0"]
[ECO "D55"]
[WhiteElo "1719"]
[BlackElo "1568"]
[Annotator "NA"]
[PlyCount "121"]
[EventDate "2019.07.16"]
[EventType "team-tourn"]
[EventCountry "TUR"]
[SourceTitle "playchess.com"]
[Source "ChessBase"]
[SourceQuality "1"]
[TimeControl "5400+30"]

1. d4 {[%emt 0:00:30]} d5 {[%emt 0:00:30]} 2. Nf3 {[%emt 0:00:00]} Nf6 {[%emt 0:00:30]} 3. c4 {[%emt 0:00:00]} c6 {[%emt 0:00:30]} 4. Nc3 {[%emt 0:00:00]} e6 {[%emt 0:01:30]} 5. Bg5 {[%emt 0:02:00]} Be7 {[%emt 0:00:00]} 6. e3 {[%emt 0:00:30]} O-O {[%emt 0:01:00]} 7. a4 {[%emt 0:00:30]} Nbd7 {[%emt 0:00:30]} 8. Bd3 {[%emt 0:00:30]} b6 {[%emt 0:01:30]} 9. cxd5 {[%emt 0:00:30]} Nxd5 {[%emt 0:01:30]} 10. Nxd5 {[%emt 0:02:30]} cxd5 {[%emt 0:00:30]} 11. Bxe7 {[%emt 0:01:30]} Qxe7 {[%emt 0:00:30]} 12. O-O {[%emt 0:00:00]} Bb7 {[%emt 0:00:30]} 13. a5 {[%emt 0:03:00]} bxa5 {[%emt 0:09:30]} 14. Rxa5 {[%emt 0:00:00]} Nb6 {[%emt 0:01:30]} 15. Rc5 {[%emt 0:01:00]} Rfc8 {[%emt 0:02:30]} 16. Qc2 {[%emt 0:00:30]} g6 {[%emt 0:00:30]} 17. Rc1 {[%emt 0:00:30]} Nd7 {[%emt 0:03:30]} 18. Rc3 {[%emt 0:02:30]} Rxc3 {[%emt 0:00:30]} 19. Qxc3 {[%emt 0:00:30]} Rc8 {[%emt 0:01:30]} 20. Qd2 {[%emt 0:00:30]} Rxc1+ {[%emt 0:00:30]} 21. Qxc1 {[%emt 0:00:00]} Qd6 {[%emt 0:00:30]} 22. Bb5 {[%emt 0:02:00]} a6 {[%emt 0:01:30]} 23. Bxd7 {[%emt 0:01:30]} Qxd7 {[%emt 0:00:30]} 24. Ne5 {[%emt 0:00:30]} Qc8 {[%emt 0:01:30]} 25. Qxc8+ {[%emt 0:01:30]} Bxc8 {[%emt 0:00:00]} 26. Kf1 {[%emt 0:00:00]} Kf8 {[%emt 0:00:00]} 27. Ke2 {[%emt 0:00:00]} Ke7 {[%emt 0:00:30]} 28. Kd2 {[%emt 0:00:00]} f6 {[%emt 0:00:30]} 29. Nd3 {[%emt 0:00:00]} Kd6 {[%emt 0:00:30]} 30. f4 {[%emt 0:00:30]} Kc6 {[%emt 0:01:30]} 31. Kc3 {[%emt 0:00:30]} Kb5 {[%emt 0:00:30]} 32. Nf2 {[%emt 0:00:30]} h5 {[%emt 0:02:30]} 33. g4 {[%emt 0:00:30]} Kc6 {[%emt 0:01:30]} 34. g5 {[%emt 0:01:30]} fxg5 {[%emt 0:00:30]} 35. fxg5 {[%emt 0:00:30]} Bd7 {[%emt 0:01:30]} 36. Nd3 {[%emt 0:00:30]} Kb5 {[%emt 0:05:30]} 37. Nf4 {[%emt 0:00:30]} Be8 {[%emt 0:00:30]} 38. Nxe6 {[%emt 0:00:30]} Bf7 {[%emt 0:00:00]} 39. Nf4 {[%emt 0:00:00]} a5 {[%emt 0:01:00]} 40. Nd3 {[%emt 0:06:00]} Be8 {[%emt 0:01:30]} 41. Nc5 {[%emt 0:01:30]} Kc6 {[%emt 0:02:30]} 42. b4 {[%emt 0:03:30]} Kb5 {[%emt 0:13:30]} 43. bxa5 {[%emt 0:00:30]} Kxa5 {[%emt 0:00:30]} 44. e4 {[%emt 0:00:00]} dxe4 {[%emt 0:00:30]} 45. Nxe4 {[%emt 0:00:00]} Bf7 {[%emt 0:00:30]} 46. d5 {[%emt 0:03:30]} Bxd5 {[%emt 0:02:30]} 47. Kd4 {[%emt 0:00:30]} Bb3 {[%emt 0:00:30]} 48. Ke5 {[%emt 0:00:30]} Kb6 {[%emt 0:02:30]} 49. Kf6 {[%emt 0:00:30]} Kc6 {[%emt 0:01:30]} 50. Nd2 {[%emt 0:00:30]} Bc2 {[%emt 0:00:30]} 51. Nc4 {[%emt 0:00:30]} Kc5 {[%emt 0:01:30]} 52. Ne5 {[%emt 0:00:30]} Kd4 {[%emt 0:02:30]} 53. Nxg6 {[%emt 0:00:30]} Ke4 {[%emt 0:00:00]} 54. Ne5 {[%emt 0:00:30]} Kf4 {[%emt 0:02:00]} 55. g6 {[%emt 0:00:30]} h4 {[%emt 0:00:30]} 56. g7 {[%emt 0:00:30]} Bh7 {[%emt 0:00:00]} 57. Ng6+ {[%emt 0:08:30]} Kg4 {[%emt 0:04:00]} 58. Kf7 {[%emt 0:00:00]} Kh3 {[%emt 0:04:30]} 59. Nf8 {[%emt 0:00:00]} Bg8+ {[%emt 0:00:30]} 60. Kxg8 {[%emt 0:00:30]} Kxh2 {[%emt 0:00:00]} 61. Ng6 {[%emt 0:00:30]} 1-0

[Event "Turkish Club Cup 2019"]
[Site "Konya"]
[Date "2019.07.17"]
[Round "3"]
[White "Yatkin, Osman"]
[Black "Kucuk, Dogan"]
[Result "1/2-1/2"]
[ECO "D00"]
[WhiteElo "1692"]
[BlackElo "2028"]
[Annotator "NA"]
[PlyCount "84"]
[EventDate "2019.07.16"]
[EventType "team-tourn"]
[EventCountry "TUR"]
[SourceTitle "playchess.com"]
[Source "ChessBase"]
[SourceQuality "1"]
[TimeControl "5400+30"]

1. d4 {[%emt 0:00:30]} Nf6 {[%emt 0:00:30]} 2. g3 {[%emt 0:00:30]} d5 {[%emt 0:02:30]} 3. Bg2 {[%emt 0:00:00]} c5 {[%emt 0:02:30]} 4. c3 {[%emt 0:01:00]} cxd4 {[%emt 0:01:30]} 5. cxd4 {[%emt 0:00:30]} e6 {[%emt 0:03:30]} 6. a3 {[%emt 0:00:30]} Bd6 {[%emt 0:00:00]} 7. Nc3 {[%emt 0:01:30]} a6 {[%emt 0:00:00]} 8. Nf3 {[%emt 0:02:30]} O-O {[%emt 0:00:30]} 9. Bg5 {[%emt 0:03:30]} h6 {[%emt 0:01:30]} 10. Bxf6 {[%emt 0:02:30]} Qxf6 {[%emt 0:00:00]} 11. e4 {[%emt 0:00:30]} dxe4 {[%emt 0:01:00]} 12. Nxe4 {[%emt 0:00:30]} Qe7 {[%emt 0:00:00]} 13. O-O {[%emt 0:01:30]} Rd8 {[%emt 0:01:00]} 14. Qe2 {[%emt 0:01:30]} Nd7 {[%emt 0:03:30]} 15. Rfe1 {[%emt 0:09:30]} Nb6 {[%emt 0:07:30]} 16. Rad1 {[%emt 0:03:30]} Nd5 {[%emt 0:04:30]} 17. Nfd2 {[%emt 0:03:30]} b5 {[%emt 0:03:30]} 18. Nxd6 {[%emt 0:04:30]} Qxd6 {[%emt 0:01:30]} 19. Ne4 {[%emt 0:00:30]} Qb6 {[%emt 0:01:30]} 20. Nc5 {[%emt 0:02:30]} b4 {[%emt 0:03:30]} 21. a4 {[%emt 0:10:30]} a5 {[%emt 0:03:30]} 22. Rc1 {[%emt 0:08:30]} Rb8 {[%emt 0:06:30]} 23. Qh5 {[%emt 0:09:30]} Bb7 {[%emt 0:06:30]} 24. Nxb7 {[%emt 0:04:30]} Rxb7 {[%emt 0:05:30]} 25. Rc5 {[%emt 0:05:30]} Rbd7 {[%emt 0:00:30]} 26. Qe5 {[%emt 0:04:31]} Nf6 {[%emt 0:16:30]} 27. Rxa5 {[%emt 0:08:58]} Rxd4 {[%emt 0:01:30]} 28. Rb5 {[%emt 0:03:47]} Qa7 {[%emt 0:00:30]} 29. Ra5 {[%emt 0:06:53]} Qd7 {[%emt 0:01:30]} 30. h3 {[%emt 0:00:13]} Rd1 {[%emt 0:00:30]} 31. Qe2 {[%emt 0:01:06]} Rd2 {[%emt 0:03:21]} 32. Qe5 {[%emt 0:00:04]} Rc8 {[%emt 0:00:07]} 33. b3 {[%emt 0:00:54]} Rcc2 {[%emt 0:03:43]} 34. Rf1 {[%emt 0:00:17]} Qd3 {[%emt 0:00:55]} 35. Qb8+ {[%emt 0:00:40]} Kh7 {[%emt 0:00:21]} 36. Qxb4 {[%emt 0:00:32]} Qe3 {[%emt 0:02:02]} 37. Qf4 {[%emt 0:00:32]} Qxb3 {[%emt 0:00:18]} 38. Rb5 {[%emt 0:00:29]} Qa3 {[%emt 0:00:58]} 39. Rb7 {[%emt 0:00:22]} Kg8 {[%emt 0:06:27]} 40. Rb8+ {[%emt 0:00:30]} Kh7 {[%emt 0:00:31]} 41. Rb7 {[%emt 0:00:38]} Kg8 {[%emt 0:00:43]} 42. Rb8+ {[%emt 0:00:06]} Kh7 {[%emt 0:00:00]} 1/2-1/2